Cogmind - Beta 10.1 --- EXPLORER MODE // 2020.10.25 @ 18:14:07 Player: Veritas Result: Destroyed by H-55 Commando with Gauss Rifle Performance ------------- Evolutions (3) 1500 Regions Visited (12) 2400 Robots Destroyed (143) 715 Value Destroyed (6996) 6996 Prototype IDs (2) 40 Alien Tech Used (0) 0 Bonus (3355) 3355 TOTAL SCORE: 15006 Bonus ------- High Alert Combat Kills 447 Follower Combat Kills 572 Entered Garrisons 800 Used RIF Installer 2000 Friendly Fire -464 Cogmind --------- Core Integrity 0/700 Matter 300/300 Energy 100/100 System Corruption 11% Temperature Cool (0) Movement Core (50) Location -7/Garrison Parts ------- > --- POWER (1) -------- (None) > --- PROPULSION (3) --- (None) > --- UTILITY (8) ------ (None) > --- WEAPON (2) ------- (None) > --- INVENTORY (4) ---- Improved Heat Sink Improved Field Recycling Unit (200) Remote Datajack Peak State ------------ > --- POWER ------------ Antimatter Reactor > --- PROPULSION ------- Medium Treads Medium Treads Medium Treads > --- UTILITY ---------- Small Battery High-capacity Matter Pod Advanced Sensor Array Improved Signal Interpreter Improved Medium Armor Plating Hacking Suite Relay Coupler [NC] Improved Field Recycling Unit > --- WEAPON ----------- Slug Cannon Slug Cannon > --- INVENTORY -------- Improved Carbon-fiber Leg Matter Filter Remote Datajack Mining Claw [Rating: 47] Favorites ----------- Power Improved Deuterium Engine Engine Improved Deuterium Engine Power Core Light Nuclear Core Reactor Antimatter Reactor Propulsion Medium Treads Treads Medium Treads Leg Carbon-fiber Leg Flight Unit VTOL Module Utility Small Battery Device Improved Field Recycling Unit Storage Small Battery Processor Improved Signal Interpreter Hackware Hacking Suite Protection Layered Medium Armor Plating Weapon Slug Cannon Energy Gun EM Pulse Gun Energy Cannon EM Pulse Cannon Ballistic Gun Gauss Rifle Ballistic Cannon Slug Cannon Launcher Heavy Missile Launcher Slashing Weapon Mining Claw Special Melee Weapon Datajack Build | -11 -10 -9 -8 -8 -8 -8 -7 -7 -7 -7 -7 -7 ------- Run | Scr Mat Mat Mat Gar Mat Gar Fac Was Fac Gar Fac Gar Slots Evolved 7 | . 1 2 2 . . . 2 . . . . . Power . | . . . . . . . . . . . . . Propulsion 1 | . . . 1 . . . . . . . . . Utility 6 | . 1 2 1 . . . 2 . . . . . Weapon . | . . . . . . . . . . . . . Parts Attached 106 | 6 8 11 7 11 9 8 15 4 11 8 4 4 Power 11 | 1 1 1 1 1 1 . 2 1 1 . 1 . Engine 6 | 1 . 1 . . 1 . 1 . 1 . 1 . Core 4 | . 1 . 1 1 . . 1 . . . . . Reactor 1 | . . . . . . . . 1 . . . . Propulsion 31 | 2 1 1 3 5 2 2 4 1 7 . 2 1 Treads 7 | . . . . . . . . . 5 . 2 . Leg 23 | 2 1 1 3 5 2 2 4 1 2 . . . Wheel . | . . . . . . . . . . . . . Hover . | . . . . . . . . . . . . . Flight 1 | . . . . . . . . . . . . 1 Utility 25 | 1 4 4 2 3 3 . 3 . 2 3 . . Device 10 | . 3 1 1 1 1 . 1 . 1 1 . . Storage 2 | . . 1 . 1 . . . . . . . . Processor 2 | 1 . . . . 1 . . . . . . . Hackware 4 | . . . . . 1 . 2 . . 1 . . Protection 7 | . 1 2 1 1 . . . . 1 1 . . Artifact . | . . . . . . . . . . . . . Weapon 39 | 2 2 5 1 2 3 6 6 2 1 5 1 3 Energy Gun 3 | 2 1 . . . . . . . . . . . Energy Cannon 2 | . . 2 . . . . . . . . . . Ballistic Gun 9 | . . . 1 . 2 3 . . . 2 . 1 Ballistic Cannon 15 | . . 3 . 1 1 . 4 2 1 2 1 . Launcher 3 | . . . . . . . . . . 1 . 2 Special Weapon . | . . . . . . . . . . . . . Impact Weapon . | . . . . . . . . . . . . . Slashing Weapon 4 | . . . . . . 2 2 . . . . . Piercing Weapon . | . . . . . . . . . . . . . Special Melee Weapon 3 | . 1 . . 1 . 1 . . . . . . Unidentified Prototypes . | . . . . . . . . . . . . . Parts Lost 19 | . . 1 2 1 . . . . . 1 1 13 Power 1 | . . . . . . . . . . . 1 . Propulsion 2 | . . . 1 . . . . . . . . 1 Utility 12 | . . 1 1 1 . . . . . 1 . 8 Weapon 4 | . . . . . . . . . . . . 4 Highest Loss Streak 11 | . . 1 1 1 . . . . . 1 1 11 Average Slot Usage (%) 97 | . 98 99 93 99 97 100 99 99 99 99 99 33 Engine 4 | . 3 3 6 . 8 8 4 4 . 7 6 2 Core 2 | . 8 6 1 8 . . 2 . . . . . Reactor 1 | . . . . . . . . 2 6 . . . Treads 5 | . . . . . . . . . 8 21 21 8 Leg 15 | . 25 20 21 25 24 25 20 21 12 . . . Device 13 | . 10 17 15 17 16 16 14 14 14 10 7 2 Storage 12 | . . 10 8 9 16 16 14 14 14 14 14 4 Processor 6 | . 12 10 4 . 7 8 7 7 7 7 7 1 Hackware 12 | . . . . . 8 8 21 21 14 17 21 6 Protection 6 | . 11 12 17 21 . . . . 6 7 7 1 Energy Gun 1 | . 24 7 . . . . . . . . . . Ballistic Gun 3 | . . . 5 8 9 14 1 . . 3 7 1 Ballistic Cannon 9 | . . 11 8 8 4 . 12 13 14 9 7 1 Naked Turns 101 | . . . . . . . . . . . . 101 Heaviest Build 55 | 9 13 25 26 26 36 35 38 48 55 48 40 40 Greatest Support 84 | 20 20 23 33 41 43 43 50 50 84 84 84 50 Greatest Overweight (x) 1 | . . 1 1 . . . 1 . 1 . . . Average Overweight (x) . | . . . . . . . . . . . . . Largest Inventory Capacity 4 | 4 4 4 4 4 4 4 4 4 4 4 4 4 Average Capacity 4 | 4 4 4 4 4 4 4 4 4 4 4 4 4 Most Carried 4 | 2 4 4 4 4 4 4 4 4 4 4 4 4 Average Carried 3 | . 3 3 4 3 3 4 3 4 3 3 3 3 Final Capacity 4 | 4 4 4 4 4 4 4 4 4 4 4 4 4 Final Carried 4 | 2 4 4 4 4 4 4 4 4 4 4 4 3 Class Distribution -------------------- 89% | Hacker-Mutant 10% | Scavenger-Mutant Dominant Class ---------------- Hacker-Mutant | -10/Materials Hacker-Mutant | -9/Materials Hacker-Mutant | -8/Materials Scavenger-Mutant | -8/Garrison Hacker-Mutant | -8/Materials Hacker-Mutant | -8/Garrison Hacker-Mutant | -7/Factory Hacker-Mutant | -7/Waste Hacker-Mutant | -7/Factory Hacker-Mutant | -7/Garrison Hacker-Mutant | -7/Factory Hacker-Mutant | -7/Garrison Resources | -11 -10 -9 -8 -8 -8 -8 -7 -7 -7 -7 -7 -7 ----------- Run | Scr Mat Mat Mat Gar Mat Gar Fac Was Fac Gar Fac Gar Matter Collected 3658 | 241 99 211 238 485 170 280 337 148 265 682 429 73 Remotely 10 | . 10 . . . . . . . . . . . Salvage Created 5015 | . 463 493 519 721 262 413 353 216 244 705 609 17 Parts 284 | . 36 28 25 34 16 18 31 . 26 37 31 2 Haulers Intercepted . | . . . . . . . . . . . . . Recyclers Shooed 2 | . . 1 . . . . . . 1 . . . Parts Field Recycled 44 | . . . . . 12 6 5 . 21 . . . Retrieved Matter 486 | . . . . . 161 52 59 . 214 . . . Parts Self-Destructed . | . . . . . . . . . . . . . Prevented . | . . . . . . . . . . . . . Kills | -11 -10 -9 -8 -8 -8 -8 -7 -7 -7 -7 -7 -7 ------- Run | Scr Mat Mat Mat Gar Mat Gar Fac Was Fac Gar Fac Gar Combat Hostiles Destroyed 119 | . 10 10 10 17 6 10 11 1 5 23 15 1 Guns 52 | . 8 3 2 11 6 10 . . . 6 6 . Cannons 58 | . . 5 8 6 . . 11 1 5 13 9 . AOE 9 | . 2 2 . . . . . . . 4 . 1 Classes Destroyed 14 | . 5 2 3 . . . 2 1 1 . . . Worker 3 | . . 1 . . 1 . . . 1 . . . Builder 4 | . 1 . . . . . . . 3 . . . Recycler 3 | . 1 1 . . . . . . . . 1 . Operator 1 | . . . . . . . 1 . . . . . Watcher 12 | . 3 2 1 . . . 3 . 1 1 1 . Swarmer 20 | . 6 . . . . 3 2 . . 6 2 1 Grunt 56 | . 4 6 4 11 2 7 4 . 1 9 8 . Brawler 4 | . . . 1 1 . . . . . 1 1 . Duelist 4 | . . . 1 2 . . . . . 1 . . Sentry 21 | . . 4 3 2 3 . 1 . 2 5 1 . Hunter 5 | . . . 1 1 1 . . . 1 1 . . Programmer 8 | . . . . . . . 4 . 1 . 3 . Compactor 1 | . . . . . . . . 1 . . . . Surgeon 1 | . . . . . . . . . 1 . . . Best Kill Streak 9 | . 4 6 4 6 6 3 3 1 4 9 4 1 Combat Bots Only 9 | . 2 5 3 6 5 3 3 1 1 9 4 1 Max Kills in Single Turn 2 | . 2 2 1 1 2 1 1 1 2 2 2 1 Gunslinging 1 | . 1 . . . . . . . . . . . Exploded 2 | . 1 2 . . . . . . . 2 . 1 Melee . | . . . . . . . . . . . . . Uniques/NPCs Destroyed . | . . . . . . . . . . . . . Combat | -11 -10 -9 -8 -8 -8 -8 -7 -7 -7 -7 -7 -7 -------- Run | Scr Mat Mat Mat Gar Mat Gar Fac Was Fac Gar Fac Gar Damage Taken 4952 | . 150 288 271 558 352 265 513 6 271 821 334 1123 Core 1026 | . 32 39 44 65 110 32 44 . 8 33 29 590 Absorbed by Shields 55 | . . . . . . . . . . . . 55 Core Remaining (%) 82 | 100 87 90 . . . 54 . . . . . . Volleys Fired 342 | . 22 26 29 44 15 26 44 9 21 60 36 10 Largest 2 | . 2 2 2 2 2 2 2 2 2 2 2 2 Hottest 102 | . 80 80 102 67 67 53 88 96 96 96 76 76 Shots Fired 656 | . 44 52 55 88 30 51 83 18 41 109 72 13 Gun 266 | . 44 18 13 44 25 51 . . . 27 36 8 Cannon 386 | . . 34 42 44 5 . 83 18 41 80 36 3 Launcher 4 | . . . . . . . . . . 2 . 2 Special . | . . . . . . . . . . . . . Kinetic 577 | . . 34 42 88 30 51 83 18 41 107 72 11 Thermal . | . . . . . . . . . . . . . Explosive 4 | . . . . . . . . . . 2 . 2 Electromagnetic 75 | . 44 18 13 . . . . . . . . . Robot Hit Streak 45 | . 11 20 23 45 27 37 17 12 8 32 33 14 Robot Miss Streak 3 | . 2 1 1 1 1 3 2 2 1 3 2 1 Penetration Max 1 | . . . 1 1 . . . . 1 1 1 . Secondary Targets 5 | . 2 . . . . 3 . . . . . . Max Gunslinging Chain 1 | . 1 . . . . 1 . . . . . . Shots Hit Robots 499 | . 34 41 49 69 26 38 57 13 28 79 56 9 Core Hits 242 | . 20 20 17 32 11 20 21 4 14 45 29 9 Critical Hits 30 | . . 1 . 2 1 1 2 1 8 8 6 . Critical Kills 12 | . . . . 1 . 1 . . 3 4 3 . Critical Parts Destroyed 17 | . . 1 . 1 1 . 2 1 4 4 3 . Melee Attacks 31 | . . . . . . 4 27 . . . . . Impact . | . . . . . . . . . . . . . Slashing 31 | . . . . . . 4 27 . . . . . Piercing . | . . . . . . . . . . . . . Sneak Attacks . | . . . . . . . . . . . . . Combat Hostiles . | . . . . . . . . . . . . . Follow-up Attacks . | . . . . . . . . . . . . . Damage Inflicted 13379 | . 570 1003 1076 1417 595 746 1399 488 1373 2331 1845 536 Guns 4533 | . 501 198 300 847 454 746 . . . 510 827 150 Cannons 7275 | . . 553 776 570 61 . 1399 488 856 1463 1018 91 Explosions 1554 | . 69 252 . . 80 . . . 513 358 . 282 Melee . | . . . . . . . . . . . . . Ramming 17 | . . . . . . . . . 4 . . 13 Kinetic 10790 | . . 553 757 1417 515 746 1399 488 856 1973 1845 241 Thermal 834 | . 69 252 . . . . . . 513 . . . Explosive 720 | . . . . . 80 . . . . 358 . 282 Electromagnetic 1018 | . 501 198 319 . . . . . . . . . Impact . | . . . . . . . . . . . . . Slashing . | . . . . . . . . . . . . . Piercing . | . . . . . . . . . . . . . Highest Corruption 11 | . . . 2 2 2 2 2 2 4 4 4 11 Average Corruption 2 | . . . 2 2 2 2 1 2 2 4 4 8 Corruption Purged . | . . . . . . . . . . . . . Effects 114 | . . . 3 8 6 11 8 3 19 31 13 12 Message Errors 31 | . . . . 2 2 3 3 1 5 6 5 4 Matter Fused 11 | . . . . . . . . . 1 7 2 1 Heat Flow Errors 10 | . . . . 1 . . . 1 3 4 1 . Energy Discharges 16 | . . . 1 2 1 1 3 1 3 3 1 . Parts Rejected 2 | . . . . . . . . . . 1 . 1 Data Loss (minor) 18 | . . . 1 . 1 3 2 . 4 4 1 2 Misdirections 3 | . . . . . . . . . . . . 3 Targeting Errors 21 | . . . 1 3 2 4 . . 2 5 3 1 Weapon Failures 2 | . . . . . . . . . 1 1 . . Overload Shots . | . . . . . . . . . . . . . Overflow Damage 388 | . . . 29 . . . 29 . 125 35 98 72 Projectiles 195 | . . . 29 . . . 29 . 4 35 98 . Explosions 193 | . . . . . . . . . 121 . . 72 Melee . | . . . . . . . . . . . . . Knockbacks 57 | . . 4 2 14 1 . 6 1 9 14 6 . Impact . | . . . . . . . . . . . . . Kinetic 52 | . . 4 2 12 1 . 6 1 8 12 6 . Secondary 5 | . . . . 2 . . . . 1 2 . . Self-Inflicted Damage 151 | . 22 . . . 39 . . . 64 . . 26 Shots 5 | . 1 . . . 1 . . . 1 . . 2 Rammed 12 | . . . . . . . . . 1 . . 11 Targets Rammed 12 | . . . . . . . . . 1 . . 11 Kicked . | . . . . . . . . . . . . . Crushed . | . . . . . . . . . . . . . Highest Temperature 460 | . 120 18 9 146 51 38 144 250 266 460 153 94 Average Temperature 68 | . 39 7 5 46 15 11 37 68 92 107 52 59 Received Heat Transfer 2439 | . 78 210 126 369 189 198 81 . 93 588 180 327 Effects 7 | . . . . . . . . . . 7 . . Shutdowns 1 | . . . . . . . . . . 1 . . Energy Bleed 1 | . . . . . . . . . . 1 . . Matter Decay 1 | . . . . . . . . . . 1 . . Short Circuit 1 | . . . . . . . . . . 1 . . Damage (major) 3 | . . . . . . . . . . 3 . . Siege Activations . | . . . . . . . . . . . . . Robots Corrupted . | . . . . . . . . . . . . . Combat Hostiles . | . . . . . . . . . . . . . Parts Fried 5 | . 3 1 1 . . . . . . . . . Impact Corruptions . | . . . . . . . . . . . . . Robots Melted . | . . . . . . . . . . . . . Combat Hostiles . | . . . . . . . . . . . . . Parts Melted 1 | . . . . . . . . . . 1 . . Heat Transferred 700 | . 100 300 . . . . . . 300 . . . Parts Sabotaged . | . . . . . . . . . . . . . Parts Stolen . | . . . . . . . . . . . . . Parts Stripped . | . . . . . . . . . . . . . Power Chain Reactions 4 | . 2 2 . . . . . . . . . . Missiles Intercepted . | . . . . . . . . . . . . . Alert | -11 -10 -9 -8 -8 -8 -8 -7 -7 -7 -7 -7 -7 ------- Run | Scr Mat Mat Mat Gar Mat Gar Fac Was Fac Gar Fac Gar Peak Influence 795 | . 202 381 436 795 491 553 266 76 177 679 603 255 Initial 283 | . . 37 114 215 283 243 215 12 40 34 264 255 Average 223 | . 103 232 325 583 315 383 87 41 63 399 377 187 Maximum Alert Level 3 | . 1 1 2 3 2 2 1 . . 2 2 1 Low Security (%) 52 | 100 98 43 18 . . . 78 100 100 12 . 67 Level 1 29 | . 1 56 47 28 92 61 21 . . 38 62 32 Level 2 14 | . . . 34 29 7 38 . . . 48 37 . Level 3 3 | . . . . 42 . . . . . . . . Level 4 . | . . . . . . . . . . . . . Level 5 . | . . . . . . . . . . . . . High Security . | . . . . . . . . . . . . . Max Security . | . . . . . . . . . . . . . Squads Dispatched 22 | . . . 1 . 4 . 8 . 3 . 6 . Investigation 4 | . . . . . . . 1 . 1 . 2 . Extermination 7 | . . . . . . . 3 . 2 . 2 . Reinforcement 8 | . . . 1 . 1 . 4 . . . 2 . Assault . | . . . . . . . . . . . . . Garrison 3 | . . . . . 3 . . . . . . . Intercept . | . . . . . . . . . . . . . Construction Impeded 2 | . . . . . . . 1 . . . 1 . Haulers Reinforced . | . . . . . . . . . . . . . Stealth | -11 -10 -9 -8 -8 -8 -8 -7 -7 -7 -7 -7 -7 --------- Run | Scr Mat Mat Mat Gar Mat Gar Fac Was Fac Gar Fac Gar Distress Signals 5 | . 2 2 . . 1 . . . . . . . Communications Jammed . | . . . . . . . . . . . . . Distress Signals . | . . . . . . . . . . . . . Times Spotted 194 | . 16 14 13 18 8 10 23 5 13 40 20 14 Peak Tracking Total 11 | . 3 5 3 4 3 3 3 2 4 9 7 11 Tactical Retreats 14 | . 1 . 1 1 . . . . 2 6 2 1 Traps | -11 -10 -9 -8 -8 -8 -8 -7 -7 -7 -7 -7 -7 ------- Run | Scr Mat Mat Mat Gar Mat Gar Fac Was Fac Gar Fac Gar Traps Triggered 10 | . . . . 1 . . 1 . 5 . . 3 Indirectly . | . . . . . . . . . . . . . Trap Hack Attempts 31 | . 20 . . 4 . 7 . . . . . . Triggered . | . . . . . . . . . . . . . Disarmed . | . . . . . . . . . . . . . Reprogrammed 14 | . 6 . . 1 . 1 . . 6 . . . Reused . | . . . . . . . . . . . . . Traps Extracted . | . . . . . . . . . . . . . Installed . | . . . . . . . . . . . . . Triggered . | . . . . . . . . . . . . . Machines | -11 -10 -9 -8 -8 -8 -8 -7 -7 -7 -7 -7 -7 ---------- Run | Scr Mat Mat Mat Gar Mat Gar Fac Was Fac Gar Fac Gar Machines Disabled 23 | . 1 . 1 2 1 2 9 . 4 3 . . Max in Single Turn 1 | . 1 . 1 1 1 1 1 . 1 1 . . Garrison Relay 7 | . . . . 2 . 2 . . . 3 . . Machines Sabotaged . | . . . . . . . . . . . . . Garrisons Compromised . | . . . . . . . . . . . . . Overloaded Fab Kills . | . . . . . . . . . . . . . Fab Network Shutdowns . | . . . . . . . . . . . . . Hacking | -11 -10 -9 -8 -8 -8 -8 -7 -7 -7 -7 -7 -7 --------- Run | Scr Mat Mat Mat Gar Mat Gar Fac Was Fac Gar Fac Gar Machines Accessed 27 | . 4 . 1 . 4 . 10 . 3 . 5 . Terminals 17 | . 4 . . . 1 . 7 . 2 . 3 . Fabricators 1 | . . . . . . . 1 . . . . . Repair Stations 2 | . . . . . 1 . 1 . . . . . Recycling Units . | . . . . . . . . . . . . . Scanalyzers 3 | . . . . . 1 . 1 . . . 1 . Garrison Access 4 | . . . 1 . 1 . . . 1 . 1 . Total Hacks 75 | . 12 . 1 . 18 . 22 . 6 . 16 . Successful 54 | . 8 . 1 . 17 . 13 . 3 . 12 . Failed 21 | . 4 . . . 1 . 9 . 3 . 4 . Catastrophic . | . . . . . . . . . . . . . Database Lockouts . | . . . . . . . . . . . . . Manual 30 | . 10 . . . 4 . 10 . . . 6 . Terminals 46 | . 12 . . . 4 . 14 . 5 . 11 . Fabricators 4 | . . . . . . . 4 . . . . . Repair Stations 9 | . . . . . 6 . 3 . . . . . Recycling Units . | . . . . . . . . . . . . . Scanalyzers 11 | . . . . . 7 . 1 . . . 3 . Garrison Access 5 | . . . 1 . 1 . . . 1 . 2 . Terminal Hacks 13 | . 2 . . . . . 5 . 2 . 4 . Record 2 | . . . . . . . . . 1 . 1 . Part Schematic 1 | . . . . . . . 1 . . . . . Robot Schematic 2 | . . . . . . . 1 . . . 1 . Robot Analysis 1 | . . . . . . . . . . . 1 . Prototype ID Bank 1 | . 1 . . . . . . . . . . . Garrison Index 1 | . . . . . . . 1 . . . . . Locate Traps 1 | . . . . . . . 1 . . . . . Reprogram Traps 1 | . . . . . . . . . 1 . . . Zone Layout 3 | . 1 . . . . . 1 . . . 1 . Fabricator Hacks 2 | . . . . . . . 2 . . . . . Load Schematic 1 | . . . . . . . 1 . . . . . Build 1 | . . . . . . . 1 . . . . . Repair Station Hacks 8 | . . . . . 6 . 2 . . . . . Scan Component 4 | . . . . . 3 . 1 . . . . . Repair 4 | . . . . . 3 . 1 . . . . . Recycling Unit Hacks . | . . . . . . . . . . . . . Scanalyzer 9 | . . . . . 7 . . . . . 2 . Insert Component 4 | . . . . . 3 . . . . . 1 . Analyze 5 | . . . . . 4 . . . . . 1 . Garrison Access Hacks 4 | . . . 1 . 1 . . . 1 . 1 . Unlock Access 4 | . . . 1 . 1 . . . 1 . 1 . Unauthorized Hacks 18 | . 6 . . . 3 . 4 . . . 5 . Terminals 17 | . 6 . . . 3 . 4 . . . 4 . Assimilate 11 | . 3 . . . 1 . 4 . . . 3 . Botnet 4 | . 2 . . . 1 . . . . . 1 . Operators 2 | . 1 . . . 1 . . . . . . . Fabricators . | . . . . . . . . . . . . . Repair Stations . | . . . . . . . . . . . . . Recycling Units . | . . . . . . . . . . . . . Scanalyzers . | . . . . . . . . . . . . . Garrison Access 1 | . . . . . . . . . . . 1 . Watchers 1 | . . . . . . . . . . . 1 . Data Cores Recovered 1 | . . . . . . . 1 . . . . . Used 1 | . . . . . . . 1 . . . . . Hacking Detections 25 | . 3 . 1 . 3 . 10 . 3 . 5 . Full Trace Events 3 | . . . . . . . 1 . . . 2 . Feedback Events 1 | . . . . . . . 1 . . . . . Corruption 1 | . . . . . . . 1 . . . . . Feedback Blocked . | . . . . . . . . . . . . . Robot Schematics Acquired 2 | . . . . . . . 1 . . . 1 . Robots Built 2 | . . . . . . . 2 . . . . . Matter 252 | . . . . . . . 252 . . . . . Time 67 | . . . . . . . 67 . . . . . Total Robot Build Rating 8 | . . . . . . . 8 . . . . . Part Schematics Acquired 5 | . . . . . 3 . 1 . . . 1 . Parts Built . | . . . . . . . . . . . . . Matter . | . . . . . . . . . . . . . Time . | . . . . . . . . . . . . . Total Part Build Rating . | . . . . . . . . . . . . . Parts Repaired 4 | . . . . . 3 . 1 . . . . . Time 126 | . . . . . 114 . 12 . . . . . Parts Recycled . | . . . . . . . . . . . . . Recycled Matter . | . . . . . . . . . . . . . Retrieved Matter . | . . . . . . . . . . . . . Retrieved Components . | . . . . . . . . . . . . . Parts Scanalyzed 4 | . . . . . 3 . . . . . 1 . Part Schematics Acquired 4 | . . . . . 3 . . . . . 1 . Parts Damaged 1 | . . . . . 1 . . . . . . . Bothacking | -11 -10 -9 -8 -8 -8 -8 -7 -7 -7 -7 -7 -7 ------------ Run | Scr Mat Mat Mat Gar Mat Gar Fac Was Fac Gar Fac Gar Used RIF Installer 4 | . . . . 1 . 1 . . . 1 . 1 Patrol Navigation 1 | . . . . . . 1 . . . . . . Autooverride 1 | . . . . . . . . . . 1 . . Autoassimilate 1 | . . . . . . . . . . . . 1 Robots Hacked . | . . . . . . . . . . . . . Non-combat . | . . . . . . . . . . . . . Combat . | . . . . . . . . . . . . . Robot Hacks Applied . | . . . . . . . . . . . . . Relay Couplers Released 26 | . . . . 7 . 7 . . . 12 . . Machine Destruction 26 | . . . . 7 . 7 . . . 12 . . Attached 3 | . . . . . 1 . 1 . . 1 . . Robots Rewired 3 | . . . . . . . . . . 3 . . Allies Hacked 1 | . . . . . . . . . 1 . . . Hacks Repelled . | . . . . . . . . . . . . . Allies | -11 -10 -9 -8 -8 -8 -8 -7 -7 -7 -7 -7 -7 -------- Run | Scr Mat Mat Mat Gar Mat Gar Fac Was Fac Gar Fac Gar Total Allies 27 | . . . . . . . 2 19 3 3 . . Largest Group 19 | . . . . . . . 2 19 14 3 . . Highest-Rated Group 487 | . . . . . . . 64 487 405 114 . . Highest-Rated Ally 38 | . . . . . . . 32 35 35 38 . . Total Orders . | . . . . . . . . . . . . . Ally Attacks 246 | . . . . . . . 21 146 43 36 . . Total Damage 6697 | . . . . . . . 856 4215 1017 609 . . Kills 26 | . . . . . . . 6 10 7 3 . . Allies Corrupted . | . . . . . . . . . . . . . Allies Melted . | . . . . . . . . . . . . . Intel | -11 -10 -9 -8 -8 -8 -8 -7 -7 -7 -7 -7 -7 ------- Run | Scr Mat Mat Mat Gar Mat Gar Fac Was Fac Gar Fac Gar Robot Analysis Total 1 | . . . . . . . . . . . 1 . Derelict Logs Recovered . | . . . . . . . . . . . . . Drone Launches . | . . . . . . . . . . . . . Drone Recoveries . | . . . . . . . . . . . . . Exploration | -11 -10 -9 -8 -8 -8 -8 -7 -7 -7 -7 -7 -7 ------------- Run | Scr Mat Mat Mat Gar Mat Gar Fac Was Fac Gar Fac Gar Turns Passed 8380 | 73 554 363 329 631 386 460 2073 272 1380 994 616 249 Spaces Moved 4910 | 48 343 212 164 393 163 291 1226 187 832 492 307 252 Core 148 | 2 . . . . . . . . . . . 146 Treads 1161 | . . . . . . . . . 314 492 307 48 Legs 3543 | 46 343 212 164 393 163 291 1226 187 518 . . . Wheels . | . . . . . . . . . . . . . Hover . | . . . . . . . . . . . . . Flight 58 | . . . . . . . . . . . . 58 Fastest Speed 40 | 50 120 120 120 120 120 120 120 123 123 160 152 40 Average Speed 131 | 117 120 121 122 120 120 120 127 123 153 160 155 67 Slowest Speed 160 | 120 120 150 150 120 120 120 155 123 160 160 160 152 Overloaded Moves . | . . . . . . . . . . . . . Propulsion Burnouts . | . . . . . . . . . . . . . Robots Hopped 10 | . . . . . . . . . . . . 10 Cave-ins Triggered . | . . . . . . . . . . . . . Exploration Rate (%) 37 | 4 59 27 14 63 19 48 31 86 19 61 13 44 Regions Visited 12 Branch Regions . Pre-discovered Areas . | . . . . . . . . . . . . . Known Exits Taken 7 | 1 1 1 1 . 1 . . . 1 . 1 . Unknown Exits Taken . | . . . . . . . . . . . . . Scrap Searched . | . . . . . . . . . . . . . Spaces Dug . | . . . . . . . . . . . . . Terrain Destroyed 124 | . 10 10 . . 22 2 . 1 28 32 2 17 Melee . | . . . . . . . . . . . . . Projectile 18 | . . 2 . . 1 2 . 1 4 6 2 . AOE 106 | . 10 8 . . 21 . . . 24 26 . 17 Terrain Rammed . | . . . . . . . . . . . . . Walls Destroyed . | . . . . . . . . . . . . . Machines Disabled . | . . . . . . . . . . . . . Actions | -11 -10 -9 -8 -8 -8 -8 -7 -7 -7 -7 -7 -7 --------- Run | Scr Mat Mat Mat Gar Mat Gar Fac Was Fac Gar Fac Gar Total 6110 | 62 440 266 235 468 324 346 1596 211 893 589 375 305 Wait 543 | 7 36 5 33 . 127 7 270 8 16 4 23 7 Move 4889 | 47 342 211 163 392 163 290 1226 186 832 491 307 239 Hop 3 | . . . . . . . . . . . . 3 Pick Up 32 | 2 6 4 . 3 4 1 5 . 2 4 1 . Fast Attach 46 | 6 3 7 6 1 4 1 4 3 4 3 2 2 Attach 13 | . . 3 . 1 1 . 3 . . 2 1 2 Detach 5 | . . . . 1 . . 1 . 1 . 1 1 Swap 47 | . 5 1 1 9 4 7 8 1 7 3 1 . Drop 68 | . 6 9 3 9 6 3 8 4 8 6 3 3 Fire 342 | . 22 26 29 44 15 26 44 9 21 60 36 10 Melee 31 | . . . . . . 4 27 . . . . . Ram 2 | . . . . . . . . . . . . 2 Kick . | . . . . . . . . . . . . . Crush 10 | . . . . . . . . . 1 . . 9 Escape Stasis 31 | . . . . 4 . . . . . . . 27 Rewire 17 | . . . . . . . . . 1 16 . . Trap 31 | . 20 . . 4 . 7 . . . . . . Miscellaneous . | . . . . . . . . . . . . . Route ------- -11/Scrapyard -10/Materials (discovered 2 exits: *Mat / *Min) -9/Materials -8/Materials -8/Garrison (discovered 2 exits: *Mat x2) -8/Materials -8/Garrison -7/Factory -7/Waste -7/Factory (discovered 2 exits: *Low / Gar) -7/Garrison (discovered 2 exits: *Fac x2) -7/Factory (discovered 2 exits: *Fac / Gar) -7/Garrison History --------- Turn | Location | Event 5 | -11/Scrapyard | Identified exit to Materials 5 | -11/Scrapyard | Discovered exit to Materials (range 15) 74 | -11/Scrapyard | Entered Materials 74 | -10/Materials | Evolved 1 slot: Utility x1 318 | -10/Materials | Build established: Hacker-Mutant 327 | -10/Materials | Identified exit to Mines 327 | -10/Materials | Discovered exit to Mines (range 6) 586 | -10/Materials | Identified exit to Materials 586 | -10/Materials | Discovered exit to Materials (range 10) 628 | -10/Materials | Entered another Materials area 628 | -9/Materials | Evolved 2 slots: Utility x2 944 | -9/Materials | Identified exit to Materials 944 | -9/Materials | Discovered exit to Materials (range 16) 991 | -9/Materials | Entered another Materials area 991 | -8/Materials | Evolved 2 slots: Propulsion x1, Utility x1 1251 | -8/Materials | Identified exit to Garrison 1320 | -8/Materials | Entered Garrison 1370 | -8/Garrison | Triggered checkpoint 1405 | -8/Garrison | Garrison Relay disabled 1488 | -8/Garrison | Triggered checkpoint 1650 | -8/Garrison | Triggered checkpoint 1659 | -8/Garrison | Build established: Scavenger-Mutant 1685 | -8/Garrison | Garrison Relay disabled 1716 | -8/Garrison | Identified exit to Materials 1716 | -8/Garrison | Discovered exit to Materials (range 10) 1884 | -8/Garrison | Triggered checkpoint 1884 | -8/Garrison | Discovered exit to Materials (range 14) 1926 | -8/Garrison | Installed Relay Interface Framework 1951 | -8/Garrison | Entered Materials 2067 | -8/Materials | Repaired Gauss Rifle 2106 | -8/Materials | Repaired Carbon-fiber Leg 2169 | -8/Materials | Repaired Imp. Light Cannon 2337 | -8/Materials | Identified exit to Garrison 2337 | -8/Materials | Entered Garrison 2343 | -8/Garrison | Expanded RIF knowledge: Watcher Feeds 2390 | -8/Garrison | Triggered checkpoint 2428 | -8/Garrison | Garrison Relay disabled 2496 | -8/Garrison | Triggered checkpoint 2501 | -8/Garrison | Build established: Hacker-Mutant 2666 | -8/Garrison | Identified exit to Factory 2666 | -8/Garrison | Discovered exit to Factory (range 14) 2716 | -8/Garrison | Triggered checkpoint 2750 | -8/Garrison | Garrison Relay disabled 2797 | -8/Garrison | Entered Factory 2797 | -7/Factory | Evolved 2 slots: Utility x2 4155 | -7/Factory | Repaired Carbon-fiber Leg 4322 | -7/Factory | Identified exit to Lower Caves 4322 | -7/Factory | Discovered exit to Lower Caves (range 30) 4393 | -7/Factory | Fabricated Y-54 Guardian (x2) 4870 | -7/Factory | Sucked down chute 4870 | -7/Factory | Entered Waste 4893 | -7/Waste | Warlord forces began an assault 4969 | -7/Waste | Spotted C-40 Crusher 4976 | -7/Waste | Allies destroyed C-40 Crusher 5011 | -7/Waste | Spotted C-40 Crusher 5017 | -7/Waste | Allies destroyed C-40 Crusher 5021 | -7/Waste | Spotted C-40 Crusher 5028 | -7/Waste | Spotted C-40 Crusher 5032 | -7/Waste | Destroyed C-40 Crusher 5038 | -7/Waste | Allies destroyed C-40 Crusher 5065 | -7/Waste | Spotted C-40 Crusher 5072 | -7/Waste | Allies destroyed C-40 Crusher 5116 | -7/Waste | Identified exit to Factory 5116 | -7/Waste | Discovered exit to Factory (range 16) 5142 | -7/Waste | Entered Factory 5142 | -7/Factory | Accompanied by 14 allies 6444 | -7/Factory | Allied Derelicts emerged from ambush trap array 6518 | -7/Factory | Discovered exit to Lower Caves (range 21) 6522 | -7/Factory | Identified exit to Garrison 6522 | -7/Factory | Entered Garrison 6522 | -7/Garrison | Accompanied by 2 allies 6679 | -7/Garrison | Destroyed 9 combat bots 6708 | -7/Garrison | Triggered checkpoint 6741 | -7/Garrison | Garrison Relay disabled 7040 | -7/Garrison | Triggered checkpoint 7123 | -7/Garrison | Identified exit to Factory 7123 | -7/Garrison | Discovered exit to Factory (range 11) 7172 | -7/Garrison | Triggered checkpoint 7204 | -7/Garrison | Garrison Relay disabled 7338 | -7/Garrison | Triggered checkpoint 7388 | -7/Garrison | Triggered checkpoint 7443 | -7/Garrison | Garrison Relay disabled 7476 | -7/Garrison | Discovered exit to Factory (range 12) 7505 | -7/Garrison | Expanded RIF knowledge: Autooverride 7516 | -7/Garrison | Entered Factory 7517 | -7/Factory | Identified exit to Factory 7517 | -7/Factory | Discovered exit to Factory (range 21) 8132 | -7/Factory | Identified exit to Garrison 8132 | -7/Factory | Entered Garrison 8140 | -7/Garrison | Expanded RIF knowledge: Autoassimilate 8178 | -7/Garrison | Triggered checkpoint 8228 | -7/Garrison | System corruption reached 10% 8261 | -7/Garrison | Lost 11 parts (1n8u2w) 8313 | -7/Garrison | Core integrity fell below 50% 8333 | -7/Garrison | Triggered checkpoint 8368 | -7/Garrison | Core integrity fell below 20% 8381 | -7/Garrison | Destroyed by H-55 Commando with Gauss Rifle Last Messages --------------- 08365_ LCGQJY>O<# [Achievement: This Is Interesting...] Map ----- +----------------------------------------------------+ | ?????????????????????????????????????????????????? | | ?????????????????????????????????????????????????? | | ?????????????????????????????????????????????????? | | ?????????????????????????????????????????????????? | | ?????????????????????????????????????????????????? | | ?????????????????????????????????????????????????? | | ?????????????????????????????????????????????????? | | ?????????????????????????????????????????????????? | | ?????????????????????????????????????????????????? | | ?????????????????????????????????????????????????? | | ?????????????????????????????????????????????????? | | ?????????????????????????? ????????????????????? | | ?????????????????????????? #???????????????????? | | ?????????????????????????? #???????????????????? | | ?????????????????????????? #??#####????????????? | | ?????????????????????????# #??#! !#????????????? | | ?????????????????????????# #??#! !#????????????? | | ?????????????????????????+ #??#! !#????????????? | | ?????????????????????????# #??## ##????????????? | | ?????????????????????????# #???# #?????????????? | | ?????????????????????????# #???# #?????????????? | | ?????????????????????????# #???# ###???????????? | | ?????????????????????????# #?### #"#???????????? | | ?????????????????????????# #?# "#???????????? | | ????????????????########## #?# "#???????????? | | ????????? %^@s #?# "#???????????? | | ????????????????########## #?### #"#???????????? | | ?????????????????????????#gh #???# ###???????????? | | ?????????????????????????# p #???# #?????????????? | | ?????????????????????????# #???# #?????????????? | | ?????????????????????????# Y##### ######????????? | | ?????????????????????????# g #????????? | | ?????????????????????????# / = #????????? | | ?????????????????????????+ #### #### #????????? | | ?????????????????????????# #??# #??# ####?????? | | ?????????????????????????# #??# #??# #????## | | ?????????????????????????# #??# #??# ## #????# | | ?????????????????????????# #??# #??# ## ####?# | | ?????????????????????????# #??# #??# ## %#?# | | ?????????????????????????# ####+####++## ###" | | ?????????????????????????# | | ?????????????????????????# | | ?????????????????????????# | | ?????????????????????????############ ## ## | | ????????????????????????????????????# ## ## | | ??????????????????????????????????? | | ??????????????????????????????????# " | | ??????????????????????????????????# | | ??????????????????????????????????# " | | ??????????????????????????????????### ## ## | +----------------------------------------------------+ Best States ------------- Heat Dissipation 45 Energy Generation 21 Energy Capacity 425 Matter Stores 500 Matter Capacity 500 Sight Range 16 Robot Scan Range 16 Terrain Scan Range 16 Terrain Scan Density 10 ECM Strength 1 Armor Coverage 225 Resistance: KI 35 Resistance: TH 35 Resistance: EX 35 Resistance: EM 35 Resistance: I 35 Resistance: S 35 Resistance: P 35 Weapon Shielding 66 Evasion (%) 62 Targeting Accuracy 5 Recoil Reduction 3 Matter Filtering 30 Offensive Hacking 30 Relay Coupler Types 78 Relay Coupler Value 2 Item Schematics ----------------- Remote Datajack | -8/Materials | Scanalyzed Mining Claw | -8/Materials | Scanalyzed Imp. Heat Sink | -8/Materials | Scanalyzed Antigrav System | -7/Factory | Hacked Slug Cannon | -7/Factory | Scanalyzed Robot Schematics ------------------ Y-54 Guardian | -7/Factory | Hacked M-28 Smith | -7/Factory | Hacked Fabricated ------------ Y-54 Guardian | x2 | -7/Factory Alien Tech Used ----------------- None Achievements -------------- Infiltrator This Is Interesting... Challenges ------------ None Game ------ Seed NeutralizingTrapCoupler Manual? 0 Play Time 01:36:28 Cumulative 25.5 hours Start 2020.10.25 @ 16:40:27 End 2020.10.25 @ 18:14:07 Sessions 1 Manual Loads 0 Difficulty Explorer Special Mode None Game No. 28 Rogue 6 Adventurer 2 Explorer 20 Win Type - Total 0 Types 0/0/0/0/0/0/0/0/0 Lore% 29 Gallery% 35 Achievement% 28 Wizard Run 0 Options --------- ASCII 0 Keyboard 0 Movement Mouse Keybinds 0 Fullscreen 0 Font 16/SmallcapsGlow Map View 76x50 Tactical HUD 1 Map Filters NONE Filters NONE Steam 1 RUN: d62e961f-b9f2-4ce2-b50a-994b6b575742